Cogmind - Beta 11.1 @@@ ROGUE MODE // 2022.06.12 @ 17:12:47 Player: Cyurio Result: Destroyed by YI-UF0 with YI-UF0's Doublenader Performance ------------- Evolutions (0) 0 Regions Visited (2) 400 Robots Destroyed (19) 95 Value Destroyed (437) 437 Prototype IDs (2) 40 Alien Tech Used (0) 0 Bonus (0) 0 TOTAL SCORE: 972 Bonus ------- None Cogmind --------- Core Integrity 0/250 Matter 181/300 Energy 265/265 System Corruption 0% Temperature Cool (0) Movement Walking (120) Location -10/Mines Parts ------- > --- POWER (1) -------- Improved Ion Engine > --- PROPULSION (2) --- Aluminum Leg Aluminum Leg > --- UTILITY (2) ------ Small Storage Unit > --- WEAPON (2) ------- Mini Grenade Launcher Hammer > --- INVENTORY (8) ---- Light Ion Engine Wheel Large Storage Unit Light Assault Rifle Grenade Launcher Hammer Peak State ------------ > --- POWER ------------ Ion Engine > --- PROPULSION ------- Armored Wheel Armored Wheel > --- UTILITY ---------- Small Storage Unit > --- WEAPON ----------- Light Assault Rifle Light Assault Rifle > --- INVENTORY -------- Light Ion Engine Improved Ion Engine Aluminum Leg Aluminum Leg Wheel Large Storage Unit Light Assault Rifle Mini Grenade Launcher [Rating: 9] Favorites ----------- Power Ion Engine Engine Ion Engine Propulsion Aluminum Leg Leg Aluminum Leg Wheel Armored Wheel Utility Small Storage Unit Storage Small Storage Unit Weapon Hammer Ballistic Gun Light Assault Rifle Launcher Mini Grenade Launcher Impact Weapon Hammer Build | -11 -10 -10 ------- Run | Scr Mat Min Slots Evolved . | . . . Power . | . . . Propulsion . | . . . Utility . | . . . Weapon . | . . . Parts Attached 16 | . 7 9 Power 2 | . . 2 Engine 2 | . . 2 Core . | . . . Reactor . | . . . Propulsion 7 | . 4 3 Treads . | . . . Leg 2 | . . 2 Wheel 5 | . 4 1 Hover . | . . . Flight . | . . . Utility . | . . . Device . | . . . Storage . | . . . Processor . | . . . Hackware . | . . . Protection . | . . . Artifact . | . . . Weapon 7 | . 3 4 Energy Gun . | . . . Energy Cannon . | . . . Ballistic Gun . | . . . Ballistic Cannon . | . . . Launcher 3 | . 1 2 Special Weapon . | . . . Impact Weapon 4 | . 2 2 Slashing Weapon . | . . . Piercing Weapon . | . . . Special Melee Weapon . | . . . Unidentified Prototypes . | . . . Parts Lost 4 | . . 4 Power 2 | . . 2 Propulsion 2 | . . 2 Utility . | . . . Weapon . | . . . Highest Loss Streak 3 | . . 3 To Critical Strikes . | . . . Average Slot Usage (%) 84 | . 85 84 Engine 13 | . 14 13 Leg 12 | . . 24 Wheel 15 | . 27 3 Storage 14 | . 14 14 Ballistic Gun 7 | . 16 . Launcher 5 | . . 10 Impact Weapon 14 | . 11 17 Naked Turns . | . . . Heaviest Build 16 | 12 14 16 Greatest Support 24 | 20 24 24 Greatest Overweight (x) . | . . . Average Overweight (x) . | . . . Largest Inventory Capacity 8 | . 8 8 Average Capacity 8 | . 8 8 Most Carried 8 | . 8 8 Average Carried 6 | . 7 5 Final Capacity 8 | 8 8 8 Final Carried 8 | 6 8 6 Class Distribution -------------------- 100% | Mutant Dominant Class ---------------- Mutant | -10/Materials Mutant | -10/Mines Resources | -11 -10 -10 ----------- Run | Scr Mat Min Matter Collected 443 | 174 94 175 Remotely . | . . . Salvage Created 477 | . 211 266 Parts 15 | . 9 6 Haulers Intercepted . | . . . Recyclers Shooed . | . . . Parts Field Recycled . | . . . Retrieved Matter . | . . . Parts Self-Destructed . | . . . Prevented . | . . . Kills | -11 -10 -10 ------- Run | Scr Mat Min Combat Hostiles Destroyed 19 | . 7 12 Melee 2 | . 1 1 Guns 3 | . 3 . AOE 7 | . . 7 Classes Destroyed 5 | . 2 3 Tunneler 1 | . . 1 Recycler 1 | . . 1 Swarmer 9 | . 3 6 Grunt 8 | . 4 4 Assembled 2 | . . 2 Best Kill Streak 3 | . 3 3 Combat Bots Only 3 | . 3 3 Max Kills in Single Turn 2 | . 1 2 Gunslinging . | . . . Exploded 2 | . . 2 Melee 1 | . 1 1 Uniques/NPCs Destroyed . | . . . Combat | -11 -10 -10 -------- Run | Scr Mat Min Damage Taken 1030 | . 410 620 Core 266 | . 43 223 Absorbed by Shields . | . . . Core Remaining (%) 100 | 100 . . Volleys Fired 31 | . 11 20 Largest 2 | . 2 1 Hottest 40 | . 40 30 Shots Fired 42 | . 22 20 Gun 22 | . 22 . Cannon . | . . . Launcher 20 | . . 20 Special . | . . . Kinetic 22 | . 22 . Thermal . | . . . Explosive 20 | . . 20 Electromagnetic . | . . . Robot Hit Streak 6 | . 6 4 Robot Miss Streak 3 | . 3 1 Penetration Max . | . . . Secondary Targets . | . . . Shots Hit Robots 64 | . 39 25 Core Hits 20 | . 5 15 Critical Kills . | . . . Critical Parts Destroyed 4 | . 2 2 Critical Strikes 4 | . 2 2 Smash 4 | . 2 2 Melee Attacks 53 | . 29 24 Impact 53 | . 29 24 Slashing . | . . . Piercing . | . . . Sneak Attacks . | . . . Combat Hostiles . | . . . Follow-up Attacks 7 | . 2 5 Damage Inflicted 1830 | . 709 1121 Guns 126 | . 126 . Cannons . | . . . Explosions 607 | . . 607 Melee 1097 | . 583 514 Ramming . | . . . Kinetic 126 | . 126 . Thermal . | . . . Explosive 607 | . . 607 Electromagnetic . | . . . Impact 1097 | . 583 514 Slashing . | . . . Piercing . | . . . Highest Corruption . | . . . Average Corruption . | . . . Corruption Purged . | . . . Corruption Blocked . | . . . Overload Shots . | . . . Overflow Damage 310 | . 81 229 Projectiles . | . . . Explosions 108 | . . 108 Melee 202 | . 81 121 Knockbacks 6 | . 6 . Impact 6 | . 6 . Kinetic . | . . . Secondary . | . . . Self-Inflicted Damage 145 | . . 145 Shots 5 | . . 5 Rammed . | . . . Targets Rammed . | . . . Kicked . | . . . Crushed . | . . . Highest Temperature 16 | . . 16 Average Temperature 8 | . . 8 Received Heat Transfer 413 | . 180 233 Siege Activations . | . . . Robots Corrupted . | . . . Combat Hostiles . | . . . Parts Fried 7 | . 4 3 Impact Corruptions 12 | . 6 6 Robots Melted . | . . . Combat Hostiles . | . . . Parts Melted . | . . . Heat Transferred . | . . . Parts Sabotaged . | . . . Parts Stolen . | . . . Parts Stripped . | . . . Power Chain Reactions . | . . . Missiles Intercepted . | . . . Alert | -11 -10 -10 ------- Run | Scr Mat Min Peak Influence 471 | . 207 471 Initial 80 | . . 80 Average 201 | . 89 302 Maximum Alert Level 2 | . 1 2 Low Security (%) 52 | . 89 18 Level 1 36 | . 10 60 Level 2 10 | . . 20 Level 3 . | . . . Level 4 . | . . . Level 5 . | . . . High Security . | . . . Max Security . | . . . Squads Dispatched . | . . . Investigation . | . . . Extermination . | . . . Reinforcement . | . . . Assault . | . . . Garrison . | . . . Intercept . | . . . Searches Triggered . | . . . Construction Impeded . | . . . Haulers Reinforced . | . . . Active Scanning Responses . | . . . Cargo Convoy Interrupts . | . . . Stealth | -11 -10 -10 --------- Run | Scr Mat Min Distress Signals 2 | . 1 1 Communications Jammed . | . . . Distress Signals . | . . . Times Spotted 31 | . 16 15 Peak Tracking Total 4 | . 4 3 Tactical Retreats 4 | . 3 1 Traps | -11 -10 -10 ------- Run | Scr Mat Min Traps Triggered . | . . . Indirectly . | . . . Trap Hack Attempts . | . . . Triggered . | . . . Disarmed . | . . . Reprogrammed . | . . . Reused . | . . . Traps Extracted . | . . . Installed . | . . . Triggered . | . . . Machines | -11 -10 -10 ---------- Run | Scr Mat Min Machines Disabled 1 | . . 1 Max in Single Turn 1 | . . 1 Machines Sabotaged . | . . . Garrisons Compromised . | . . . Overloaded Fab Kills . | . . . Hacking | -11 -10 -10 --------- Run | Scr Mat Min Machines Accessed 7 | . 7 . Terminals 7 | . 7 . Fabricators . | . . . Repair Stations . | . . . Recycling Units . | . . . Scanalyzers . | . . . Garrison Access . | . . . Total Hacks 19 | . 19 . Successful 9 | . 9 . Failed 9 | . 9 . Catastrophic 2 | . 2 . Database Lockouts 1 | . 1 . Manual 4 | . 4 . Terminals 19 | . 19 . Fabricators . | . . . Repair Stations . | . . . Recycling Units . | . . . Scanalyzers . | . . . Garrison Access . | . . . Terminal Hacks 9 | . 9 . Record 5 | . 5 . Robot Analysis 1 | . 1 . Prototype ID Bank 1 | . 1 . Branch Access Points 1 | . 1 . Zone Layout 1 | . 1 . Fabricator Hacks . | . . . Repair Station Hacks . | . . . Recycling Unit Hacks . | . . . Scanalyzer . | . . . Garrison Access Hacks . | . . . Unauthorized Hacks . | . . . Terminals . | . . . Fabricators . | . . . Repair Stations . | . . . Recycling Units . | . . . Scanalyzers . | . . . Garrison Access . | . . . Data Cores Recovered . | . . . Used . | . . . Hacking Detections 7 | . 7 . Full Trace Events . | . . . Feedback Events . | . . . Feedback Blocked . | . . . Robot Schematics Acquired . | . . . Robots Built . | . . . Authchips . | . . . Time . | . . . Total Robot Build Rating . | . . . Part Schematics Acquired . | . . . Parts Built . | . . . Authchips . | . . . Time . | . . . Total Part Build Rating . | . . . Parts Repaired . | . . . Time . | . . . Parts Recycled . | . . . Recycled Matter . | . . . Retrieved Matter . | . . . Retrieved Components . | . . . Parts Scanalyzed . | . . . Part Schematics Acquired . | . . . Parts Damaged . | . . . Bothacking | -11 -10 -10 ------------ Run | Scr Mat Min Used RIF Installer . | . . . Robots Hacked . | . . . Non-combat . | . . . Combat . | . . . Robot Hacks Applied . | . . . Relay Couplers Released . | . . . Fabnet Peak Effective % . | . . . Robots Rewired . | . . . Allies Hacked . | . . . Hacks Repelled . | . . . Allies | -11 -10 -10 -------- Run | Scr Mat Min Total Allies . | . . . Largest Group . | . . . Highest-Rated Group . | . . . Highest-Rated Ally . | . . . Total Orders . | . . . Ally Attacks . | . . . Total Damage . | . . . Kills . | . . . Allies Corrupted . | . . . Allies Melted . | . . . Intel | -11 -10 -10 ------- Run | Scr Mat Min Robot Analysis Total 1 | . 1 . Derelict Logs Recovered . | . . . Drone Launches . | . . . Drone Recoveries . | . . . Exploration | -11 -10 -10 ------------- Run | Scr Mat Min Turns Passed 1216 | . 576 640 Spaces Moved 931 | 1 499 431 Core . | . . . Treads . | . . . Legs 393 | 1 5 387 Wheels 538 | . 494 44 Hover . | . . . Flight . | . . . Fastest Speed 80 | 120 80 90 Average Speed 99 | 120 84 116 Slowest Speed 120 | 120 120 120 Overloaded Moves . | . . . Propulsion Burnouts . | . . . Robots Hopped . | . . . Cave-ins Triggered . | . . . Exploration Rate (%) 59 | 2 92 84 Regions Visited 2 Branch Regions 1 Pre-discovered Areas 1 | . . 1 Known Exits Taken 1 | . 1 . Unknown Exits Taken 1 | 1 . . Scrap Searched . | . . . Spaces Dug . | . . . Terrain Destroyed 133 | . . 133 Melee . | . . . Projectile . | . . . AOE 133 | . . 133 Terrain Rammed . | . . . Walls Destroyed . | . . . Machines Disabled . | . . . Actions | -11 -10 -10 --------- Run | Scr Mat Min Total 1099 | . 590 509 Wait 64 | . 36 28 Move 929 | . 498 431 Hop . | . . . Pick Up 7 | . 5 2 Fast Attach 2 | . 2 . Attach 4 | . . 4 Detach . | . . . Swap 10 | . 5 5 Drop 7 | . 7 . Fire 31 | . 11 20 Melee 45 | . 26 19 Ram . | . . . Kick . | . . . Crush . | . . . Escape Stasis . | . . . Rewire . | . . . Trap . | . . . Miscellaneous . | . . . Route ------- -11/Scrapyard -10/Materials (discovered 4 exits: [*Mat x3] / *Min) -10/Mines (discovered 2 exits: [*Mat x2]) History --------- Turn | Location | Event 1 | -11/Scrapyard | Discovered new exit (range 0) 1 | -11/Scrapyard | Entered Materials 37 | -10/Materials | Identified exit to Mines 92 | -10/Materials | Central database locked down 217 | -10/Materials | Discovered new exit (range 15) 307 | -10/Materials | Discovered new exit (range 4) 321 | -10/Materials | Build established: Mutant 531 | -10/Materials | Discovered new exit (range 8) 577 | -10/Materials | Entered Mines 691 | -10/Mines | Lost 3 parts (1p2n) 698 | -10/Mines | Discovered new exit (range 9) 731 | -10/Mines | Core integrity fell below 50% 777 | -10/Mines | YI-UF0 nonchalantly dropped a Grenade Launcher on the ground 814 | -10/Mines | Discovered new exit (range 7) 965 | -10/Mines | Learned location of Storage (-8) 1028 | -10/Mines | Excavation squad dispatched 1028 | -10/Mines | A large section of the Mines collapsed 1036 | -10/Mines | Core integrity fell below 20% 1217 | -10/Mines | Destroyed by YI-UF0 with YI-UF0's Doublenader Last Messages --------------- you? I'm here trying to lose some heat after our second raid on Storage failed. Whatever you do stay away from that place, they've tightened security following our previous successful raids." World map updated: -8/Storage. 00967_ WU-F4Z(g): "We scattered so the Unaware couldn't effectively use their advantage in numbers, and I suggest you do the same." 00967_ WU-F4Z(g) slips back into the shadows. 01013_ K-01 Serf collects debris. 01028_ ALERT: Suspicious cave-in, suspected derelict activity in mines. Dispatching escorted excavation squad. 01035_ Destroyed Asb. F-torch. 01037_ as-74899 destroyed. 01041_ as-77004 destroyed. 01062_ The unstable cave ceiling collapses. 01076_ R-06 Scavenger destroyed. 01086_ Acquired 71 matter. 01126_ Acquired Lgt. Ion Engine. 01128_ The unstable cave ceiling collapses. 01173_ Destroyed Seismic Detector. 01173_ T-07 Excavator destroyed. Map ----- +----------------------------------------------------+ | ?## #??# # ##??????????????????????????? ??# | | ## #??# ##?????????????????????????? ??? | | # #??# ##?????????????????????????# #??? | | ##??# ##????????????????????????# #??? | | #???# #????????????? ??????????# ##?? | | #??## #????????????? ##??????## #?? | | # #?## #???????????????# ###??? #?# | | # ### #???????????????? #??# ### | | ## % #####???????????? ## !%| | | ?##### ##???????????? ## | | ?????## ### #???????????????# | | ??????#####?## #???????????????## | | ???????????## ##????????????????# | | ???????????# [ # ##??????#####?????## | | ???????????## %[ ####??????## ####### | | ???????????## ####??????# ## | | ???????????# #?????## ##### | | ???????##### #???### # #######???## | | ???????# < """ #??## ### ###???????## | | ???????# ### """ #??# =* ######### #????????# | | ???????#%#?# """ #?## =[%## ####??????? | | ######## ############?# %=#### ##?????? | | #???????????# ##?# #?????? | | """ """ #???????????## g ##??# #?????? | | """ """ #???????????# #??## #?????? | | """ """ #???????????# @ #???# #?????? | | #???????????# ##?## ### | | """ """ #???????????# ### # " | | """ """ #??????####### ## # " ### | | """ """ #??????# ### ## #?????# | | #??????# ###### #?### ##?????? | | ## ########?????????????### ##???# ###??????? | | ?# #???????????????#???????######## ##????????? | | ?# #???????####### ???####??# < #?????????? | | ?# #??????## ???## ##?# ##?????????? | | ?# ###??### ?????# ### ### #??????????? | | ?# #?## #??????# ## #?# ##?????????? | | ?# #?# #??????# ## #?## ##????????? | | ?## ### ##??????# #??### ##???????? | | ??# ######## #????## ##??????? | | ??# ######?????## #??????? | | ??####### #???????????## #??????? | | ????????#### ######## ##????????????####??????? | | ???????????#####??????####???????????????????????? | | ?????????????????????????????????????????????????? | | ?????????????????????????????????????????????????? | | | | | | | | | +----------------------------------------------------+ Best States ------------- Heat Dissipation 25 Energy Generation 12 Energy Capacity 265 Matter Stores 300 Matter Capacity 300 Sight Range 16 Terrain Scan Density 10 Evasion (%) 55 Item Schematics ----------------- None Robot Schematics ------------------ None Fabricated ------------ Nothing Alien Tech Used ----------------- None Achievements -------------- None Challenges ------------ None Game ------ Seed ImpactBiometalJammer Manual? 0 Play Time 00:17:02 Cumulative 35.1 hours Start 2022.06.12 @ 16:59:58 End 2022.06.12 @ 17:12:47 Sessions 1 Manual Loads 0 Difficulty Rogue Special Mode None Game No. 56 Rogue 56 Adventurer 0 Explorer 0 Win Type - Total 0 Types 0/0/0/0/0/0/0/0/0 Lore% 25 Gallery% 30 Achievement% 26 Wizard Run 0 Options --------- ASCII 0 Keyboard 1 Movement Vi Keybinds 0 Fullscreen 1 Font 24/Smallcaps Map View 76x50 Tactical HUD 1 Map Filters NONE Filters NONE Steam 1 RUN: 8cd58b47-f8f1-4a00-aaa6-06da112ed5ad